bitfinex-derivatives/quotes_ETHF0:USTF0_20250621
["timestamp","ask_amount","ask_price","bid_price","bid_amount"]
[1750541506190,3.2078,2249.7,2248.5,7.03865027]
[1750541506390,50.15,2254.2,2247.1,0.3569478]
[1750541506391,50.15,2251.3,2247.1,0.3569478]
[1750541506582,50.15,2251.3,2240.6,376.125]
[1750541506583,3.2078,2247.3,2242.6,3.2078]
[1750541506777,5.67339539,2253.5,2247.2,6.92305169]
[1750541506778,313.437,2250.7,2247.2,6.92305169]
[1750541506982,50.15,2257.3,2250.0,17.1409435]
[1750541507182,0.88902,2249.5,2245.1,3.2078]
[1750541507383,0.88902,2249.5,2239.6,313.437]
[1750541507384,17.1409435,2245.9,2239.3,3.2078]
[1750541507683,50.469,2249.4,2236.5,3.6715]
[1750541507684,3.2078,2239.5,2236.5,3.6715]
[1750541507881,3.2078,2238.1,2236.5,4.03866543]
[1750541508091,52.572,2244.0,2236.5,14.54769279]
[1750541508279,3.2078,2237.4,2235.6,0.36625948]
[1750541508590,3.2078,2238.3,2235.6,14.54678684]
[1750541508795,3.2078,2246.4,2240.4,3.2078]
[1750541509085,0.1282,2249.2,2235.7,327.72161028]
[1750541509086,3.2078,2248.2,2242.6,3.2078]
[1750541509290,3.2078,2245.3,2243.3,3.2078]
[1750541509492,5.157,2246.3,2244.8,3.2078]
[1750541509687,5.157,2247.1,2246.6,3.2078]
[1750541509887,0.1282,2256.1,2246.3,0.15853707]
[1750541509888,3.2078,2250.0,2247.0,3.2078]
[1750541510087,3.5292,2257.9,2249.1,20.3487435]
[1750541510285,3.2078,2254.7,2252.4,3.2078]
[1750541510592,3.2078,2254.7,2252.0,3.2078]
[1750541510884,3.2078,2254.5,2252.6,3.2078]
[1750541511086,0.88766,2252.7,2251.9,2.15183]
[1750541511287,12.56587618,2256.2,2248.4,50.68]
[1750541511288,3.2078,2253.3,2248.4,50.68]
[1750541511485,3.2078,2254.5,2251.4,3.2078]
[1750541511682,3.2078,2251.5,2248.2,3.2078]
[1750541511885,3.2078,2251.5,2239.8,316.754]
[1750541511886,3.2078,2249.9,2246.8,3.2078]
[1750541512084,3.2078,2249.2,2245.2,3.2078]
[1750541512395,4.44717,2248.2,2245.7,3.2078]
[1750541512688,3.2078,2247.9,2244.4,50.68]
[1750541512894,3.2078,2250.3,2247.8,3.2078]
[1750541513091,5.91653548,2251.3,2248.9,3.2078]
[1750541513279,5.91653548,2251.3,2247.9,54.3253]
[1750541513280,3.2078,2252.6,2249.6,3.2078]
[1750541513485,317.1831,2258.1,2249.6,3.2078]
[1750541513486,5.91653548,2253.4,2250.8,3.2078]
[1750541513794,5.67566366,2252.5,2249.7,55.4953]
[1750541514093,3.2078,2253.6,2251.0,3.2078]
[1750541514391,0.88823,2251.2,2251.0,2.2815]
[1750541514595,3.2078,2252.2,2248.0,3.2078]
[1750541514792,0.88895,2249.4,2248.5,3.2078]
[1750541514985,0.88843,2250.7,2249.5,3.2078]
[1750541515304,6.4156,2252.9,2250.6,3.2078]
[1750541515486,17.16592995,2252.3,2250.8,3.2078]
[1750541515684,6.4156,2249.8,2245.7,4.64557101]
[1750541515882,4.43948,2252.1,2245.4,50.853]
[1750541515883,3.2078,2248.9,2246.6,3.2078]
[1750541516081,3.2078,2249.4,2246.8,2.1056605]
[1750541516286,317.834,2255.4,2246.8,2.1056605]
[1750541516287,3.2078,2252.5,2250.0,3.2078]
[1750541516485,5.42413,2255.6,2252.0,3.2078]
[1750541516689,51.57942657,2255.5,2252.2,3.2078]
[1750541516885,17.16592995,2252.3,2250.7,3.2078]
[1750541517085,50.946,2255.4,2248.0,50.946]
[1750541517086,2.22068,2251.1,2249.6,3.2078]
[1750541517285,0.01332526,2252.2,2249.1,1.58102]
[1750541517482,3.2078,2253.2,2250.8,0.1513938]
[1750541517688,3.2078,2253.2,2250.8,50.946]
[1750541517888,20.37372995,2253.7,2251.0,1.9456]
[1750541518086,0.88831,2251.0,2250.9,3.6625]
[1750541518288,0.88862,2250.2,2250.1,2.68248]
[1750541518485,0.88862,2250.2,2250.1,1.29462]
[1750541518682,0.88861,2250.3,2250.1,6.29462]
[1750541518887,20.36389726,2253.0,2250.1,1.29462]
[1750541519088,0.8887,2250.0,2249.9,0.25896]
[1750541519390,2.21927,2252.6,2249.9,0.93336]
[1750541519690,318.763,2259.5,2250.3,3.2078]
[1750541519889,0.88783,2252.2,2252.1,3.2078]
[1750541520088,0.08880206,2252.2,2252.1,1.33263]
[1750541520288,0.08880206,2252.2,2252.1,6.33263]
[1750541520490,3.2078,2255.3,2252.4,3.2078]
[1750541520686,0.08868393,2255.2,2253.7,3.2078]
[1750541520888,3.2078,2257.0,2254.4,1.6032]
[1750541521085,3.2078,2257.0,2253.1,318.763]
[1750541521086,17.15609726,2256.5,2254.6,3.2078]
[1750541521287,17.15609726,2256.5,2254.5,51.002]
[1750541521288,0.08863676,2256.4,2255.0,1.73147]
[1750541521596,17.15609726,2259.6,2256.4,3.2078]
[1750541521892,44.03297989,2260.1,2255.1,51.002]
[1750541521893,0.35872441,2260.1,2258.1,3.2078]
[1750541522094,0.35872441,2260.1,2258.4,3.2078]
[1750541522393,0.88452,2260.7,2260.0,3.2078]
[1750541522584,0.88467,2260.3,2259.7,50.988]
[1750541522786,2.20973,2262.3,2259.8,50.988]
[1750541522982,20.36389726,2262.8,2259.8,50.988]
[1750541523296,37.62129662,2263.4,2261.3,0.02138064]
[1750541523594,3.2078,2263.6,2261.4,50.988]
[1750541523988,0.35563196,2264.0,2261.4,55.988]
[1750541524186,0.35563196,2264.0,2262.1,3.2078]
[1750541524389,0.35563196,2264.0,2263.0,0.02138064]
[1750541524598,0.35563196,2264.0,2263.1,50.988]
[1750541524896,0.03027,2264.9,2263.2,3.8916]
[1750541525095,3.2078,2266.0,2263.7,3.2078]
[1750541525391,4.0296395,2267.9,2264.8,0.02138064]
[1750541525392,16.96016291,2267.4,2264.8,0.02138064]
[1750541525587,3.2078,2267.5,2264.8,0.02138064]
[1750541525783,5.08302793,2267.3,2264.8,0.02138064]
[1750541525998,37.62129662,2267.4,2264.9,50.945]
[1750541526290,3.2078,2267.5,2264.9,50.945]
[1750541526291,0.8824,2266.1,2265.1,3.2078]
[1750541526494,3.2078,2267.5,2265.6,0.02138064]
[1750541526887,3.2078,2267.5,2266.5,0.0231071]
[1750541527087,0.3525395,2267.9,2266.5,0.0231071]
[1750541527393,3.2078,2268.0,2267.0,3.2078]
[1750541527591,0.02082301,2268.8,2267.3,3.2078]
[1750541527787,0.02082301,2268.8,2268.0,0.0231071]
[1750541528198,16.89515755,2269.1,2268.0,0.0231071]
[1750541528395,3.2078,2269.2,2268.0,0.0231071]
[1750541528900,3.2078,2269.4,2268.6,0.0231071]
[1750541529399,3.2078,2269.8,2268.6,0.0231071]
[1750541529599,2.76643065,2269.8,2268.6,0.0231071]
[1750541529894,16.89515755,2269.4,2267.4,3.2078]
[1750541530097,3.2078,2268.3,2267.0,3.2078]
[1750541530307,16.89515755,2269.4,2267.1,50.892]
[1750541530505,16.89515755,2269.4,2266.7,3.6193]
[1750541530506,3.2078,2269.6,2268.0,3.2078]
[1750541530801,37.62129662,2269.3,2267.2,8.89585284]
[1750541530997,0.01322125,2268.0,2266.9,50.892]
[1750541531300,3.2078,2271.0,2266.9,103.905]
[1750541531500,16.89515755,2271.2,2266.9,103.905]
[1750541531501,3.2078,2270.4,2268.6,3.2078]
[1750541531799,16.85886189,2269.1,2267.0,9.01303875]
[1750541532002,16.85886189,2269.1,2266.5,50.849]
[1750541532003,3.2078,2268.7,2266.8,3.2078]
[1750541532192,16.85886189,2269.4,2267.0,3.2078]
[1750541532396,16.85886189,2270.0,2268.3,3.2078]
[1750541532703,37.62129662,2270.6,2268.4,50.849]
[1750541532999,37.62129662,2267.8,2265.0,50.849]
[1750541533202,37.62129662,2267.8,2260.0,48.664]
[1750541533203,4.89032431,2270.5,2268.7,3.2078]
[1750541533399,37.64764989,2271.6,2270.1,3.2078]
[1750541533594,37.64764989,2271.6,2270.2,50.849]
[1750541533803,0.34944706,2271.7,2270.4,3.2078]
[1750541534095,3.2078,2271.4,2268.9,50.849]
[1750541534407,3.2078,2275.2,2271.3,3.2078]
[1750541534699,3.2078,2275.2,2269.0,50.849]
[1750541534700,1.9098288,2281.7,2269.0,50.849]
[1750541534701,3.2078,2276.5,2274.0,3.2078]
[1750541534902,3.5544,2277.7,2275.9,3.2078]
[1750541535100,16.85886189,2277.3,2276.0,50.803]
[1750541535303,3.5544,2277.7,2275.0,3.2078]
[1750541535304,3.2078,2276.6,2275.0,3.2078]
[1750541535511,16.85886189,2276.8,2275.2,3.2078]
[1750541535798,16.85886189,2277.3,2275.5,3.2078]
[1750541536001,16.85886189,2277.3,2274.8,50.803]
[1750541536002,16.85886189,2277.5,2275.6,3.2078]
[1750541536395,16.85886189,2277.5,2274.8,50.803]
[1750541536396,3.5544,2277.7,2275.9,3.2078]
[1750541536597,20.06666189,2276.0,2273.4,50.803]
[1750541536796,3.2078,2275.6,2273.8,3.2078]
[1750541536995,3.2078,2275.6,2272.1,317.52]
[1750541536996,3.2078,2276.7,2274.7,3.2078]
[1750541537202,3.2078,2277.3,2275.0,3.2078]
[1750541537403,3.5544,2277.7,2275.3,3.2078]
[1750541537594,3.5544,2277.7,2275.6,3.2078]
[1750541537996,3.5544,2277.7,2275.9,3.2078]
[1750541538199,3.2078,2282.0,2278.3,3.2078]
[1750541538399,20.44406189,2282.2,2280.0,3.2078]
[1750541538595,16.85886189,2280.6,2278.4,6.879]
[1750541538804,3.2078,2281.2,2278.4,6.879]
[1750541539004,3.2078,2281.2,2278.7,3.2078]
[1750541539300,3.2078,2283.1,2281.1,3.2078]
[1750541539498,3.2078,2283.1,2282.1,0.06031372]
[1750541539697,3.2078,2284.3,2283.0,3.2078]
[1750541539894,3.2078,2284.3,2283.3,3.2078]
[1750541540101,50.741,2289.4,2284.1,3.2078]
[1750541540292,50.741,2289.4,2283.0,55.741]
[1750541540293,3.5852,2287.9,2286.3,3.2078]
[1750541540602,16.85886189,2289.0,2287.1,3.2078]
[1750541540603,3.2078,2289.0,2287.1,3.2078]
[1750541540807,3.2078,2289.0,2288.7,3.2078]
[1750541541101,3.2078,2290.2,2288.7,3.19468221]
[1750541541308,3.5573,2291.0,2289.6,3.2078]
[1750541541598,16.85886189,2290.7,2289.7,3.2078]
[1750541541801,16.85886189,2290.7,2288.6,3.2078]
[1750541542001,16.85886189,2289.8,2288.6,3.2078]
[1750541542194,16.85886189,2290.2,2289.7,3.2078]
[1750541542395,3.5573,2291.0,2290.0,3.2078]
[1750541542595,17.051875,2290.8,2290.0,1.07113917]
[1750541542800,17.051875,2290.1,2289.0,3.2078]
[1750541542992,3.2078,2290.3,2288.0,3.2078]
[1750541543197,17.051875,2289.6,2287.5,3.2078]
[1750541543497,17.051875,2289.0,2287.2,3.2078]
[1750541543701,17.051875,2289.0,2287.1,3.2078]
[1750541544001,17.051875,2287.8,2282.0,315.915]
[1750541544305,3.2078,2283.6,2282.3,3.2078]
[1750541544500,3.2078,2285.0,2284.7,3.2078]
[1750541544695,3.2078,2286.1,2284.3,3.2078]
[1750541545004,3.2078,2286.1,2284.2,50.546]
[1750541545005,3.2078,2284.4,2282.4,9.6234]
[1750541545202,3.2078,2283.0,2281.4,3.2078]
[1750541545509,3.2078,2284.4,2282.0,3.2078]
[1750541545699,17.051875,2283.8,2281.7,3.2078]
[1750541546011,3.2078,2283.8,2281.6,50.546]
[1750541546197,3.2078,2283.8,2279.5,52.652]
[1750541546198,3.2078,2287.3,2283.6,3.2078]
[1750541546401,3.7156,2288.0,2285.6,3.2078]
[1750541546699,3.734,2291.1,2283.7,422.4423]
[1750541546700,3.2078,2289.3,2287.1,3.2078]
[1750541546897,0.3339848,2291.2,2288.1,3.2078]
[1750541546898,3.2078,2290.4,2288.1,3.2078]
[1750541547101,3.2078,2290.4,2289.5,3.2078]
[1750541547396,3.2078,2290.4,2288.2,50.60340494]
[1750541547397,0.06847599,2288.5,2288.2,0.08740494]
[1750541547599,0.06847599,2288.5,2286.5,3.2078]
[1750541547806,0.06847599,2288.5,2286.6,0.0874661]
[1750541547807,3.6963,2288.4,2286.6,0.0874661]
[1750541547997,3.27627599,2288.5,2286.6,4.79339669]
[1750541548200,3.2078,2286.4,2284.2,3.2078]
[1750541548404,3.2078,2284.7,2282.8,8.00119669]
[1750541548601,3.2078,2283.8,2279.7,17.051875]
[1750541548800,14.15673938,2286.3,2282.4,3.2078]
[1750541548801,3.2078,2283.7,2282.4,3.2078]
[1750541549000,3.2078,2283.7,2280.9,17.051875]
[1750541549001,3.2078,2286.5,2283.6,3.2078]
[1750541549202,3.2078,2288.6,2285.5,3.2078]
[1750541549411,3.6963,2289.1,2283.7,106.7325]
[1750541549412,3.6963,2289.1,2286.7,3.2078]
[1750541549602,3.2078,2288.5,2286.4,3.2078]
[1750541549800,3.2078,2288.2,2287.1,3.2078]
[1750541550000,3.2078,2288.2,2287.0,3.2078]
[1750541550300,8.2078,2288.2,2287.3,3.2078]
[1750541550500,8.2078,2288.2,2286.1,3.2078]
[1750541550706,3.2078,2287.9,2286.4,3.2078]
[1750541550905,3.2078,2287.9,2286.5,50.493]
[1750541551207,3.2078,2288.1,2287.3,3.2078]
[1750541551805,3.2078,2288.7,2287.3,1.07113917]
[1750541552202,3.2078,2288.7,2286.9,3.2078]
[1750541552408,3.2078,2289.7,2288.1,3.2078]
[1750541552603,3.6866,2290.0,2288.8,3.2078]
[1750541552906,3.2078,2291.1,2289.9,3.2078]
[1750541553209,3.2078,2292.5,2290.8,3.2078]
[1750541553509,3.2078,2292.5,2291.1,3.2078]
[1750541553708,0.3339848,2290.7,2290.3,3.2078]
[1750541553911,3.2078,2291.9,2289.6,53.6528]
[1750541554211,0.3339848,2291.8,2290.4,3.2078]
[1750541554506,0.4212296,2292.4,2291.4,3.2078]
[1750541554701,0.3339848,2291.8,2291.1,3.2078]
[1750541554901,0.3339848,2290.5,2289.9,0.04842917]
[1750541555208,3.5417848,2291.4,2289.9,0.04842917]
[1750541555406,20.614475,2292.3,2290.2,3.2078]
[1750541555407,0.87274,2291.2,2290.2,3.2078]
[1750541555602,0.87258,2291.6,2290.5,3.2078]
[1750541555803,0.87258,2291.6,2290.3,54.0848]
[1750541555804,3.2078,2293.2,2291.3,3.2078]
[1750541556103,0.3339848,2293.3,2292.2,3.2078]
[1750541556301,3.2078,2293.5,2292.3,50.385]
[1750541556500,3.2078,2293.5,2287.8,0.03808]
[1750541556703,3.2078,2293.5,2290.6,3.2078]
[1750541556704,0.3339848,2291.0,2290.6,3.2078]
[1750541556903,3.2078,2291.9,2290.6,3.2078]
[1750541557117,0.3339848,2293.0,2291.2,3.2078]
[1750541557411,0.87219,2292.6,2291.5,3.2078]
[1750541557604,3.2078,2293.5,2291.8,3.2078]
[1750541557799,3.5417848,2293.8,2292.1,3.2078]
[1750541558004,3.2078,2292.9,2292.1,1.07113917]
[1750541558201,3.2078,2292.9,2292.0,314.91]
[1750541558403,3.2078,2292.9,2292.1,3.2078]
[1750541558805,3.2078,2292.9,2290.4,3.2078]
[1750541558806,0.3339848,2292.2,2290.4,3.2078]
[1750541559003,3.2078,2290.8,2290.0,3.7732]
[1750541559210,3.2078,2290.8,2290.1,0.08733243]
[1750541559407,3.2078,2291.7,2290.1,0.08733243]
[1750541559608,3.2078,2291.7,2290.3,3.2078]
[1750541559808,3.2078,2291.7,2290.1,0.08733243]
[1750541559809,3.2078,2291.4,2290.1,0.08733243]
[1750541560005,17.051875,2293.5,2290.1,0.08733243]
[1750541560006,0.3339848,2291.3,2290.4,3.2078]
[1750541560207,3.2078,2290.9,2290.1,0.08733243]
[1750541560403,2.18033,2292.8,2290.1,0.08733243]
[1750541560404,4.4148848,2290.2,2290.1,2.43e-06]
[1750541560612,9.4148848,2290.2,2290.1,2.43e-06]
[1750541560913,9.4148848,2290.2,2288.3,3.7732]
[1750541560914,3.2078,2290.2,2288.5,1.0711416]
[1750541561111,3.2078,2290.2,2288.6,50.337]
[1750541561314,3.2078,2289.9,2289.0,3.2078]
[1750541561511,3.2078,2289.3,2288.6,50.337]
[1750541561809,3.6459,2292.1,2288.0,0.06847599]
[1750541561810,0.3339848,2288.7,2288.0,0.06847599]
[1750541562004,3.2078,2288.1,2288.0,0.06847599]
[1750541562205,0.3339848,2287.9,2287.8,5.99e-06]
[1750541562407,2.18518,2287.7,2285.6,54.1245]
[1750541562613,0.3339848,2286.2,2285.6,54.1245]
[1750541562820,0.3339848,2286.2,2281.5,4.38218]
[1750541562821,3.2078,2285.7,2283.9,3.2078]
[1750541563004,0.87586,2283.0,2282.3,3.2078]
[1750541563205,0.87594,2282.8,2281.4,3.2078]
[1750541563408,3.2078,2283.2,2281.4,3.2078]
[1750541563610,2.18779,2285.0,2281.7,3.2078]
[1750541563611,0.3339848,2283.1,2281.7,3.2078]
[1750541563803,0.3339848,2282.8,2281.4,3.2078]
[1750541564007,3.2078,2282.2,2281.1,1.66383917]
[1750541565018,0.3339848,2281.2,2280.0,3.2078]
[1750541565215,3.2078,2284.1,2281.1,17.051875]
[1750541565518,3.2078,2285.8,2284.0,3.2078]
[1750541565720,0.3339848,2286.0,2285.1,3.2078]
[1750541566015,17.051875,2288.0,2285.1,3.2078]
[1750541566016,3.2078,2286.6,2285.4,3.2078]
[1750541566215,0.3339848,2287.5,2286.5,3.2078]
[1750541566408,3.2078,2288.4,2287.2,3.2078]
[1750541566611,0.3339848,2288.2,2287.5,3.2078]
[1750541566807,3.2078,2289.4,2287.8,3.2078]
[1750541567008,3.2078,2289.7,2287.7,3.2078]
[1750541567208,3.2078,2289.2,2287.8,3.7158]
[1750541567407,3.2078,2289.2,2287.3,50.359]
[1750541567408,3.2078,2288.7,2287.3,48.24025]
[1750541567603,3.2078,2288.2,2287.3,48.24025]
[1750541567816,3.2078,2288.6,2287.6,3.2078]
[1750541568015,0.3339848,2289.2,2287.9,3.2078]
[1750541568219,3.2078,2289.9,2288.2,3.2078]
[1750541568410,3.2078,2289.9,2288.5,3.2078]
[1750541568717,50.349,2292.4,2288.5,3.2078]
[1750541568718,3.2078,2290.8,2289.2,3.2078]
[1750541569019,0.3339848,2292.3,2290.7,3.2078]
[1750541569231,0.8723,2292.4,2291.3,3.2078]
[1750541569523,0.3339848,2292.3,2291.4,50.349]
[1750541569919,3.2078,2292.9,2291.3,1.99722]
[1750541569920,0.3339848,2291.7,2291.3,1.99722]
[1750541570119,0.3339848,2291.0,2290.0,3.2078]
[1750541570319,0.3339848,2291.3,2290.0,3.2078]
[1750541570528,0.3339848,2290.4,2290.0,3.2078]
[1750541570817,3.2078,2290.8,2289.2,3.2078]
[1750541571017,0.3339848,2291.0,2289.7,3.2078]
[1750541571221,3.2078,2292.0,2290.2,3.2078]
[1750541571423,1.2067848,2291.1,2290.2,3.2078]
[1750541571619,0.3339848,2291.5,2290.2,3.2078]
[1750541571826,3.2078,2291.9,2290.2,3.2078]
[1750541572323,3.2078,2292.5,2290.7,3.2078]
[1750541572526,0.3339848,2292.0,2291.0,3.2078]
[1750541572713,1.2064748,2291.9,2291.1,50.318]
[1750541573018,3.2078,2292.5,2291.3,3.2078]
[1750541573225,3.2078,2293.3,2291.6,3.2078]
[1750541573418,0.3339848,2292.8,2291.9,3.2078]
[1750541573612,3.2078,2294.0,2292.3,3.2078]
[1750541573817,2.17956,2293.6,2291.7,3.2078]
[1750541574117,0.3339848,2291.6,2290.3,3.2078]
[1750541574317,0.3339848,2291.5,2290.4,50.295]
[1750541574521,3.2078,2292.0,2290.4,50.295]
[1750541574826,3.2078,2293.7,2291.3,3.2078]
[1750541575015,0.3339848,2292.7,2291.8,3.2078]
[1750541575216,0.3339848,2292.7,2291.4,55.9095]
[1750541575217,3.2078,2293.2,2291.9,50.295]
[1750541575416,0.87232,2292.3,2291.9,50.295]
[1750541575618,3.2078,2293.2,2291.9,50.295]
[1750541575828,3.2078,2292.9,2291.9,50.295]
[1750541576025,0.87209,2292.9,2292.4,3.2078]
[1750541576224,3.2078,2294.2,2292.4,1.07113917]
[1750541576427,3.2078,2294.2,2291.9,55.295]
[1750541576428,3.2078,2294.7,2292.7,3.2078]
[1750541576730,2.17868,2294.5,2293.0,3.2078]
[1750541576917,0.87187,2293.5,2293.1,50.277]
[1750541577118,2.17887,2294.3,2293.1,50.277]
[1750541577418,0.87196,2293.2,2293.1,47.27013]
[1750541577622,0.87196,2293.2,2292.1,314.231]
[1750541577623,2.18011,2293.0,2292.2,50.277]
[1750541577923,3.2078,2292.3,2290.1,3.2078]
[1750541578127,2.18024,2292.9,2288.5,50.277]
[1750541578128,0.87341,2289.4,2289.3,3.2078]
[1750541578315,3.2078,2290.2,2289.3,5.0]
[1750541578723,3.2078,2292.0,2290.1,3.2078]
[1750541578928,3.2078,2293.1,2290.9,3.2078]
[1750541579228,4.35813,2294.2,2290.2,50.277]
[1750541579229,3.2078,2292.0,2290.2,55.95448096]
[1750541579431,3.2078,2291.1,2289.6,3.2078]
[1750541579725,0.87326,2289.8,2289.2,50.277]
[1750541579916,3.2078,2290.2,2289.2,50.277]
[1750541580223,3.2078,2290.4,2289.2,50.277]
[1750541580635,3.2078,2290.9,2289.2,55.277]
[1750541580828,3.2078,2291.8,2290.0,3.2078]
[1750541581125,3.2078,2292.7,2290.9,3.2078]
[1750541581317,3.2078,2292.9,2291.2,3.2078]
[1750541581522,3.2078,2293.0,2291.3,52.365]
[1750541581715,5.38799,2293.0,2291.3,52.365]
[1750541581914,5.38799,2293.0,2291.3,57.365]
[1750541581915,3.2078,2293.0,2291.3,57.365]
[1750541582119,3.2078,2293.0,2291.9,3.2078]
[1750541582326,3.2078,2291.5,2290.2,7.4478]
[1750541582517,0.87307,2290.3,2290.2,3.6859]
[1750541582715,2.18128,2291.8,2290.1,50.27]
[1750541582716,0.87311,2290.2,2290.1,50.27]
[1750541582915,2.1823,2290.7,2289.8,3.5388]
[1750541582916,0.87322,2289.9,2289.8,3.5388]
[1750541583117,3.2078,2289.9,2288.7,50.258]
[1750541583330,3.2078,2291.7,2289.3,3.2078]
[1750541583527,4.19117,2291.7,2289.6,3.2078]
[1750541583720,5.38806,2292.9,2290.0,3.2078]
[1750541583920,5.38806,2292.9,2290.3,20.259675]
[1750541583921,0.87252,2291.8,2290.3,20.259675]
[1750541584126,6.19785083,2292.3,2291.0,3.2078]
[1750541584324,2.18047,2292.7,2291.0,55.5608]
[1750541584528,6.19785083,2290.1,2288.5,3.2078]
[1750541584728,3.2078,2288.6,2287.6,3.6525]
[1750541584930,3.2078,2288.2,2287.1,53.4658]
[1750541585226,9.40565083,2287.2,2286.3,50.258]
[1750541585430,6.19785083,2288.0,2286.0,50.273]
[1750541585729,3.2078,2289.3,2287.5,3.2078]
[1750541585931,2.67209788,2292.1,2285.6,5.60808284]
[1750541585932,3.2078,2289.9,2288.2,3.2078]
[1750541586125,3.2078,2292.6,2289.7,3.2078]
[1750541586325,2.18063,2292.5,2290.1,3.2078]
[1750541586634,6.19785083,2289.3,2287.6,3.2078]
[1750541586821,6.19785083,2289.3,2286.5,50.273]
[1750541586822,0.87399,2287.9,2287.8,5.99e-06]
[1750541587028,0.87399,2287.9,2286.5,53.4808]
[1750541587029,6.19785083,2287.9,2286.5,50.273]
[1750541587230,3.2078,2288.5,2286.5,55.273]
[1750541587440,6.19785083,2289.2,2287.1,3.2078]
[1750541587727,3.2078,2289.8,2287.2,52.368]
[1750541587930,0.87373,2288.6,2287.8,0.06847599]
[1750541588121,0.87347,2289.3,2287.9,50.273]
[1750541588326,3.2078,2290.2,2288.3,1.07113917]
[1750541588522,6.19785083,2290.0,2288.6,3.2078]
[1750541588726,3.2078,2290.7,2288.6,3.2078]
[1750541588929,6.19785083,2288.7,2288.4,5.65682221]
[1750541589131,9.40565083,2288.5,2287.0,50.285]
[1750541589429,3.2078,2288.7,2287.2,17.051875]
[1750541589630,3.2078,2289.2,2287.5,3.2078]
[1750541589832,3.2078,2289.2,2287.5,20.259675]
[1750541590129,3.2078,2289.6,2288.1,3.2078]
[1750541590432,2.18281,2290.2,2288.2,109.6873]
[1750541590433,3.2078,2289.5,2288.2,109.6873]
[1750541590625,0.87383,2288.3,2288.2,106.4795]
[1750541590826,0.8742,2287.4,2286.7,53.4928]
[1750541591024,6.19785083,2288.1,2286.1,3.2078]
[1750541591025,6.19785083,2287.5,2286.1,3.2078]
[1750541591227,3.2078,2288.8,2286.3,0.87457]
[1750541591529,3.2078,2291.2,2288.7,20.259675]
[1750541591835,3.2078,2291.2,2286.6,9.28019]
[1750541591836,2.1829,2290.1,2288.8,420.1908]
[1750541592029,2.1829,2290.1,2288.9,50.29]
[1750541592332,3.2078,2290.2,2288.9,50.29]
[1750541592524,3.2078,2290.5,2289.0,55.5928]
[1750541592724,9.40565083,2290.3,2289.0,55.5928]
[1750541593026,9.40565083,2290.1,2289.0,3.2078]
[1750541593327,3.2078,2289.1,2287.7,50.29]
[1750541593532,0.87399,2287.9,2287.8,49.32163]
[1750541593831,0.87428,2287.2,2286.5,52.385]
[1750541594033,3.2078,2287.9,2286.5,56.1041]
[1750541594224,0.87448,2286.6,2286.5,52.385]
[1750541594530,9.40565083,2287.9,2286.4,103.74613917]
[1750541594728,9.40565083,2288.2,2286.5,3.7191]
[1750541594926,3.2078,2289.6,2287.6,20.259675]
[1750541595236,0.87361,2288.9,2288.8,2.30238]
[1750541595429,3.2078,2289.2,2288.8,3.2078]
[1750541595627,0.8736,2289.0,2288.8,3.2078]
[1750541595938,2.18285,2290.2,2287.8,50.303]
[1750541595939,2.1813,2291.8,2289.6,3.2078]
[1750541596134,3.2078,2291.5,2290.5,3.2078]
[1750541596432,3.2078,2291.8,2290.1,52.399]
[1750541596433,5.38985,2291.0,2290.1,52.399]
[1750541596636,0.87326,2289.8,2289.1,52.399]
[1750541596823,7.57491,2289.4,2288.1,48.55832599]
[1750541597031,3.2078,2288.2,2287.3,50.303]
[1750541597231,3.2078,2289.6,2287.9,3.2078]
[1750541597431,3.2078,2289.2,2288.0,52.399]
[1750541597633,3.7809,2291.3,2287.4,7.2654]
[1750541597634,2.18434,2288.6,2287.4,7.2654]
[1750541597857,3.2078,2287.4,2286.1,3.2078]
[1750541598129,4.36874,2288.6,2284.8,314.39]
[1750541598130,3.2078,2286.2,2284.9,50.302]
[1750541598332,3.2078,2286.4,2285.0,20.812975]
[1750541598538,3.2078,2288.3,2285.8,17.051875]
[1750541598743,6.4156,2285.2,2283.9,3.2078]
[1750541599031,3.2078,2284.0,2280.9,50.302]
[1750541599239,3.2078,2282.2,2280.8,50.302]
[1750541599427,19.239735,2284.9,2280.8,50.302]
[1750541599428,3.2078,2284.1,2282.1,3.2078]
[1750541599634,3.2078,2285.3,2283.6,17.051875]
[1750541599833,3.5845,2286.9,2284.0,3.2078]
[1750541600035,2.19046,2282.2,2278.5,50.302]
[1750541600224,0.25045633,2280.3,2278.8,3.2078]
[1750541600430,3.45825633,2280.1,2278.8,3.2078]
[1750541600731,3.2078,2282.7,2280.0,3.2078]
[1750541600928,2.00407341,2284.6,2280.1,50.328]
[1750541600929,0.25045633,2280.6,2280.1,50.328]
[1750541601127,0.25045633,2280.6,2279.5,3.2078]
[1750541601128,3.2078,2281.4,2279.5,3.2078]
[1750541601335,3.2078,2282.0,2279.8,3.2078]
[1750541601535,3.2078,2283.6,2281.1,17.051875]
[1750541601729,8.01629364,2286.6,2282.7,17.051875]
[1750541601730,3.7486,2284.9,2282.7,17.051875]
[1750541601929,0.25045633,2284.4,2283.6,3.2078]
[1750541602129,0.25045633,2283.9,2283.5,3.2078]
[1750541602333,0.8759,2282.9,2282.8,50.328]
[1750541602534,0.8759,2282.9,2282.8,49.35515]
[1750541602737,3.2078,2284.1,2282.8,52.95514]
[1750541602937,3.2078,2285.0,2283.5,17.051875]
[1750541603130,0.87464,2286.2,2286.1,5.99e-06]
[1750541603331,0.8756,2283.7,2283.6,5.72851631]
[1750541603534,0.87619,2282.2,2282.0,1.07113917]
[1750541603735,3.2078,2283.8,2282.0,315.81313917]